bitfinex/quotes_SOLUSD_20240613
["timestamp","ask_amount","ask_price","bid_price","bid_amount"]
[1718288976466,2.4844,148.93,148.87,2.4853]
[1718288976650,31.58556748,148.96,148.9,2.4848]
[1718288976856,9.10166748,148.95,148.91,2.4847]
[1718288977052,8.6487,148.97,148.8,146.68]
[1718288977053,6.1649,148.97,148.8,146.68]
[1718288977258,6.1649,148.97,148.93,2.4843]
[1718288977259,9.10166748,148.96,148.93,2.4843]
[1718288977575,9.10166748,148.96,148.93,2.4842]
[1718288977951,9.10166748,148.96,148.94,2.4841]
[1718288978169,9.10166748,148.96,148.9,7.4546]
[1718288978470,9.10166748,148.99,148.92,2.4844]
[1718288978647,9.10166748,148.99,148.91,47.4846]
[1718288978648,2.4836,148.98,148.91,47.4846]
[1718288978847,2.4836,148.98,148.89,4.9699]
[1718288978848,9.10166748,148.99,148.9,49.9695]
[1718288979054,0.80848,149.0,148.9,45.0]
[1718288979258,9.10166748,148.99,148.9,45.0]
[1718288979479,9.10166748,148.99,148.91,0.34]
[1718288979648,9.10166748,148.99,148.95,2.484]
[1718288980270,9.10166748,148.99,148.96,2.4837]
[1718288980469,9.10166748,148.99,148.96,4.9677]
[1718288980651,9.10166748,148.99,148.98,2.4835]
[1718288980852,9.10166748,148.99,148.97,47.4836]
[1718288981157,9.10166748,148.99,148.92,4.9689]
[1718288981349,2.4834,148.99,148.93,45.0]
[1718288981555,9.10166748,148.99,148.93,47.4843]
[1718288981865,104.9675,148.97,148.85,9.9424]
[1718288982071,22.4839,148.96,148.89,2.485]
[1718288982280,11.58566748,148.95,148.88,2.4851]
[1718288982452,2.484,148.95,148.88,2.4851]
[1718288982646,2.4842,148.94,148.88,2.4851]
[1718288982843,2.4842,148.94,148.87,2.4853]
[1718288983057,9.10166748,148.95,148.89,2.4849]
[1718288983350,20.0,148.97,148.87,17.3972]
[1718288983551,9.10166748,148.96,148.91,2.4847]
[1718288984055,9.10166748,148.97,148.82,0.17]
[1718288984254,9.10166748,148.97,148.93,2.4843]
[1718288984580,9.10166748,148.97,148.92,2.4844]
[1718288984769,9.10166748,148.97,148.91,47.4846]
[1718288985151,2.4837,148.97,148.91,45.0]
[1718288985486,9.10166748,148.97,148.91,47.4846]
[1718288985975,9.10166748,148.97,148.91,45.0]
[1718288986187,9.10166748,148.97,148.94,2.4841]
[1718288986350,9.10166748,148.97,148.95,2.4839]
[1718288986950,9.10166748,148.97,148.93,4.9686]
[1718288987145,9.10166748,148.97,148.94,45.0]
[1718288987396,0.80848,149.0,148.95,2.4839]
[1718288987887,6.51487777,148.99,148.96,2.4838]
[1718288988063,6.51487777,148.99,148.94,62.3892]
[1718288988253,6.51487777,148.99,148.97,2.4836]
[1718288988452,6.51487777,148.99,148.96,45.0]
[1718288988669,6.51487777,148.99,148.97,2.4835]
[1718288988981,6.51487777,148.99,148.96,47.4838]
[1718288989271,6.51487777,148.99,148.97,2.4837]
[1718288990072,6.51487777,148.99,148.96,47.4838]
[1718288990374,6.51487777,148.99,148.95,47.4839]
[1718288990595,6.51487777,148.99,148.95,45.0]
[1718288990756,6.51487777,148.99,148.96,2.4838]
[1718288991272,6.51487777,148.99,148.97,2.4836]
[1718288991573,6.51487777,148.99,148.97,2.4835]
[1718288991830,6.51487777,148.99,148.98,2.4835]
[1718288992083,6.51487777,148.99,148.95,57.42]
[1718288992261,6.51487777,148.99,148.97,2.4835]
[1718288993157,6.51487777,148.99,148.98,2.4835]
[1718288996070,6.51487777,148.99,148.98,7.4506]
[1718288996273,6.51487777,148.99,148.98,52.4506]
[1718288996777,6.51487777,148.99,148.98,45.0]
[1718288997075,6.51487777,148.99,148.98,2.4835]
[1718288997254,6.51487777,148.99,148.98,45.0]
[1718288997456,6.51487777,148.99,148.96,4.9677]
[1718288997695,6.51487777,148.99,148.98,2.4835]
[1718288998978,6.51487777,148.99,148.98,47.4835]
[1718288999997,6.51487777,148.99,148.95,2.4839]
[1718289000201,6.51487777,148.99,148.96,2.4838]
[1718289000404,6.51487777,148.99,148.97,2.4836]
[1718289000706,6.51487777,148.99,148.98,24.8354]
[1718289001004,6.51487777,148.99,148.9,7.92202045]
[1718289001203,6.51487777,148.99,148.98,7.4506]
[1718289001503,6.51487777,148.99,148.98,2.4835]
[1718289002114,6.51487777,148.99,148.97,2.4836]
[1718289002318,6.51487777,148.99,148.89,20.17]
[1718289002614,6.51487777,148.99,148.94,12.4208]
[1718289002921,6.51487777,148.99,148.95,2.4839]
[1718289003093,6.51487777,148.99,148.96,2.4837]
[1718289003412,6.51487777,148.99,148.98,2.4835]
[1718289004107,6.51487777,148.99,148.98,17.3848]
[1718289004307,6.51487777,148.99,148.98,24.8354]
[1718289004604,6.51487777,148.99,148.98,69.8354]
[1718289005008,6.51487777,148.99,148.98,70.5154]
[1718289005684,0.80848,149.0,148.99,25.0036]
[1718289005886,0.80848,149.0,148.99,70.5136]
[1718289006495,0.80848,149.0,148.99,70.3436]
[1718289006800,0.80848,149.0,148.99,70.0036]
[1718289006991,0.80848,149.0,148.99,70.5136]
[1718289007189,8e-05,149.0,148.99,70.5136]
[1718289007392,8e-05,149.0,148.99,70.3436]
[1718289007590,8e-05,149.0,148.99,69.8336]
[1718289008287,8e-05,149.0,148.99,70.0036]
[1718289008490,8e-05,149.0,148.99,70.5136]
[1718289009989,8.0669516,149.09,149.08,2.4818]
[1718289010409,6.2309,149.14,149.0,20.16]
[1718289010587,14.2978516,149.14,149.13,7.4431]
[1718289010793,8.0669516,149.14,149.13,7.4431]
[1718289011019,8.0669516,149.14,149.13,24.8104]
[1718289011598,8.0669516,149.14,149.13,2.481]
[1718289011827,8.0669516,149.14,149.13,24.9804]
[1718289011991,8.0669516,149.14,149.13,70.4904]
[1718289013031,8.0669516,149.14,149.13,70.3204]
[1718289013211,8.0669516,149.14,149.13,70.4904]
[1718289013615,0.80848,149.15,149.14,24.8086]
[1718289013813,0.80848,149.15,149.14,2.4808]
[1718289013814,8.8754316,149.15,149.14,2.4808]
[1718289014020,8.8754316,149.15,149.14,7.4425]
[1718289014215,8.8754316,149.15,149.14,24.8086]
[1718289014443,8.8754316,149.15,149.11,2.4813]
[1718289014669,0.80848,149.15,149.1,2.4814]
[1718289014802,6.1752,149.13,149.08,2.4817]
[1718289015129,8.0669516,149.12,149.04,7.4472]
[1718289015343,8.0669516,149.12,149.07,2.4819]
[1718289015509,8.0669516,149.12,149.03,74.23796157]
[1718289015709,8.0669516,149.12,149.07,4.9638]
[1718289015914,8.0669516,149.12,149.08,2.4817]
[1718289016211,8.0669516,149.12,149.11,2.4813]
[1718289016413,8.0669516,149.12,149.11,24.8136]
[1718289017325,0.80848,149.15,149.14,24.8086]
[1718289017633,7.9441873,149.15,149.14,69.8086]
[1718289017934,7.9441873,149.15,149.14,69.9786]
[1718289018308,0.80848,149.15,149.14,70.3186]
[1718289018510,0.80848,149.15,149.14,70.4886]
[1718289019222,8e-05,149.15,149.14,70.4886]
[1718289021118,8e-05,149.15,149.14,2.4808]
[1718289021308,8e-05,149.15,149.14,24.8086]
[1718289022640,8e-05,149.15,149.14,70.4886]
[1718289024136,8e-05,149.15,149.14,190.87013992]
[1718289024311,8e-05,149.15,149.14,231.03013992]
[1718289024646,8e-05,149.15,149.14,110.87013992]
[1718289024947,8e-05,149.15,149.14,24.8086]
[1718289025109,7.1357073,149.26,149.25,2.479]
[1718289025306,7.1357073,149.26,149.23,2.4793]
[1718289025506,7.1357073,149.26,149.24,2.479]
[1718289025706,7.1357073,149.26,149.18,12.4007]
[1718289025934,7.1357073,149.26,149.18,4.9602]
[1718289026136,9.6146073,149.26,149.2,2.4798]
[1718289026442,7.1357073,149.26,149.22,2.4795]
[1718289026737,7.1357073,149.26,149.11,40.54564056]
[1718289026738,7.1357073,149.26,149.24,2.4791]
[1718289026913,7.1357073,149.26,149.19,4.9598]
[1718289027114,7.1357073,149.26,149.21,2.4796]
[1718289027431,7.1357073,149.26,149.22,2.4795]
[1718289027630,7.1357073,149.26,149.21,4.9593]
[1718289027847,7.1357073,149.26,149.22,2.4794]
[1718289028730,7.1357073,149.26,149.17,22.3227]
[1718289028910,22.4791,149.25,149.16,12.4025]
[1718289029110,7.69445388,149.24,149.21,2.4796]
[1718289029342,7.69445388,149.24,149.22,2.4795]
[1718289029522,7.69445388,149.24,149.23,2.4793]
[1718289029721,6.1164,149.27,149.24,2.4791]
[1718289030239,7.69445388,149.26,149.24,2.4792]
[1718289030541,7.69445388,149.26,149.25,2.479]
[1718289030715,7.69445388,149.26,149.22,2.4794]
[1718289031129,7.69445388,149.26,149.23,2.4793]
[1718289031533,7.69445388,149.26,149.22,2.4794]
[1718289031916,7.69445388,149.26,149.19,17.3602]
[1718289031917,7.69445388,149.26,149.19,2.4799]
[1718289032129,6.1164,149.27,149.19,2.4799]
[1718289032336,6.1164,149.27,149.2,2.4798]
[1718289032622,7.69445388,149.26,149.22,2.4795]
[1718289032838,7.69445388,149.26,149.23,2.4793]
[1718289033134,7.69445388,149.26,149.2,12.3993]
[1718289033135,10.17335388,149.26,149.2,2.4798]
[1718289033336,7.69445388,149.26,149.21,2.4796]
[1718289033523,7.69445388,149.26,149.23,2.4793]
[1718289033722,7.69445388,149.26,149.2,62.3587]
[1718289033723,7.69445388,149.26,149.22,45.0]
[1718289033917,7.69445388,149.26,149.25,2.479]
[1718289034114,7.69445388,149.26,149.23,4.9587]
[1718289034337,7.69445388,149.26,149.25,2.479]
[1718289035255,7.69445388,149.29,149.24,45.0]
[1718289035544,7.69445388,149.29,149.26,2.4788]
[1718289035742,7.69445388,149.29,149.27,2.4786]
[1718289035933,7.69445388,149.29,149.25,4.9579]
[1718289036136,7.69445388,149.29,149.28,2.4785]
[1718289036923,7.69445388,149.29,149.28,24.9554]
[1718289037120,7.69445388,149.29,149.28,47.4785]
[1718289037642,7.69445388,149.29,149.28,2.4785]
[1718289037948,7.69445388,149.29,149.27,45.0]
[1718289038147,7.69445388,149.29,149.26,45.0]
[1718289038450,7.69445388,149.29,149.21,4.9593]
[1718289038748,7.35920593,149.27,149.2,9.9194]
[1718289038950,7.35920593,149.27,149.23,2.4793]
[1718289039151,7.35920593,149.27,149.23,4.9587]
[1718289039446,7.35920593,149.27,149.26,2.4788]
[1718289039656,7.35920593,149.27,149.19,9.9196]
[1718289039827,2.4787,149.27,149.21,2.4796]
[1718289040033,7.35920593,149.27,149.23,2.4792]
[1718289040240,7.35920593,149.27,149.23,2.4793]
[1718289040436,7.35920593,149.27,149.24,2.4792]
[1718289040758,7.35920593,149.27,149.23,2.4792]
[1718289041061,7.35920593,149.27,149.22,2.4794]
[1718289041224,7.35920593,149.27,149.23,2.4793]
[1718289041639,7.35920593,149.27,149.24,2.4792]
[1718289041841,7.35920593,149.27,149.21,2.4796]
[1718289042162,7.35920593,149.27,149.2,9.9193]
[1718289042336,7.35920593,149.27,149.26,2.4788]
[1718289042825,0.80848,149.3,149.27,2.4786]
[1718289043032,0.80848,149.3,149.28,2.4785]
[1718289043238,7.35920593,149.29,149.27,2.4786]
[1718289043645,7.35920593,149.29,149.28,2.4785]
[1718289044146,7.35920593,149.29,149.26,49.9575]
[1718289044352,7.35920593,149.29,149.28,2.4785]
[1718289045150,7.35920593,149.29,149.28,24.7854]
[1718289045326,7.35920593,149.29,149.28,47.4785]
[1718289046155,7.35920593,149.29,149.28,2.4785]
[1718289046451,7.35920593,149.29,149.27,47.4786]
[1718289046640,7.35920593,149.29,149.27,2.4786]
[1718289046838,7.35920593,149.29,149.28,2.4785]
[1718289047552,7.35920593,149.29,149.26,45.0]
[1718289047755,7.35920593,149.29,149.27,0.51]
[1718289048052,7.35920593,149.29,149.26,45.0]
[1718289048357,7.35920593,149.29,149.18,11.3034]
[1718289048557,10.0394547,149.25,149.19,2.4799]
[1718289048769,7.5603547,149.25,149.2,2.4797]
[1718289049258,7.5603547,149.25,149.18,4.9603]
[1718289049460,7.5603547,149.25,149.17,17.3621]
[1718289049461,7.5603547,149.25,149.17,22.3226]
[1718289049673,7.5603547,149.25,149.18,4.9604]
[1718289050035,7.5603547,149.25,149.18,12.4009]
[1718289050233,7.5603547,149.25,149.21,2.4796]
[1718289050841,7.5603547,149.25,149.24,2.4792]
[1718289051462,7.5603547,149.25,149.23,45.0]
[1718289051662,7.5603547,149.25,149.19,2.4799]
[1718289051838,7.5603547,149.25,149.14,6.2352]
[1718289052039,7.5603547,149.25,149.22,2.4795]
[1718289052254,7.5603547,149.25,149.2,2.4798]
[1718289052451,7.5603547,149.25,149.15,45.0]
[1718289052651,7.5603547,149.25,149.22,2.4794]
[1718289052851,7.5603547,149.25,149.23,2.4793]
[1718289053336,7.5603547,149.25,149.24,2.4792]
[1718289054468,7.5603547,149.28,149.23,47.4793]
[1718289054637,7.5603547,149.28,149.22,45.0]
[1718289055150,7.5603547,149.28,149.24,2.4791]
[1718289055349,7.5603547,149.28,149.25,2.4789]
[1718289055551,7.5603547,149.28,149.24,2.4791]
[1718289055745,7.5603547,149.28,149.22,45.0]
[1718289055940,7.5603547,149.28,149.23,0.17]
[1718289056170,7.43966544,149.29,149.28,2.4785]
[1718289056339,7.43966544,149.29,149.27,2.4786]
[1718289056534,7.43966544,149.29,149.26,45.0]
[1718289057047,7.43966544,149.29,149.25,45.0]
[1718289057364,7.43966544,149.29,149.27,2.4786]
[1718289058776,7.43966544,149.29,149.28,2.4785]
[1718289059148,7.43966544,149.29,149.28,47.8185]
[1718289059350,7.43966544,149.29,149.28,47.6485]
[1718289059765,7.43966544,149.29,149.28,45.0]
[1718289060069,7.43966544,149.29,149.28,47.4785]
[1718289061089,7.43966544,149.29,149.28,45.0]
[1718289061371,0.97848,149.3,149.18,4.9603]
[1718289061579,2.4786,149.28,149.18,4.9603]
[1718289061743,20.97848,149.3,149.18,4.9603]
[1718289061744,7.43966544,149.27,149.21,2.4795]
[1718289061944,8.6503,149.25,149.16,4.961]
[1718289062166,7.43966544,149.24,149.19,2.4799]
[1718289062477,2.4794,149.23,149.14,14.8851]
[1718289062685,2.4794,149.23,149.17,2.4802]
[1718289062851,20.0,149.24,149.12,4.9623]
[1718289063046,2.4796,149.22,149.15,2.4805]
[1718289063246,15.5407,149.22,149.14,2.4808]
[1718289063441,15.5407,149.22,149.15,2.4806]
[1718289063442,7.43966544,149.2,149.15,2.4806]
[1718289063675,7.43966544,149.2,149.09,4.9634]
[1718289063869,9.91956544,149.2,149.14,2.4808]
[1718289064068,9.91956544,149.2,149.08,7.4438]
[1718289064069,7.43966544,149.2,149.08,7.4438]
[1718289064279,7.43966544,149.2,149.19,2.48]
[1718289064571,15.5407,149.22,149.11,9.9255]
[1718289064791,2.4801,149.19,149.09,4.9632]
[1718289065096,15.5407,149.22,149.09,4.9632]
[1718289065097,7.43966544,149.18,149.13,2.481]
[1718289065384,15.5407,149.22,149.17,2.4803]
[1718289065784,7.43966544,149.21,149.18,2.4801]
[1718289065963,7.43966544,149.21,149.17,2.4803]
[1718289066158,7.43966544,149.21,149.11,12.4062]
[1718289066363,11.97587826,149.19,149.14,2.4808]
[1718289066585,2.4798,149.21,149.15,2.4807]
[1718289066760,31.97587826,149.21,149.16,2.4805]
[1718289066970,11.97587826,149.2,149.12,45.0]
[1718289067183,11.97587826,149.2,149.14,2.4808]
[1718289067491,11.97587826,149.2,149.11,2.4812]
[1718289067492,8.7815,149.17,149.11,2.4812]
[1718289067996,8.7815,149.17,149.09,4.9633]
[1718289067997,6.3011,149.17,149.13,2.4809]
[1718289068174,11.97587826,149.16,149.1,12.4075]
[1718289068375,11.97587826,149.16,149.11,4.9627]
[1718289068895,11.97587826,149.16,149.14,2.4808]
[1718289069062,11.97587826,149.16,149.15,2.4807]
[1718289069564,6.2972,149.21,149.13,9.9239]
[1718289069866,6.2972,149.21,149.16,2.4805]
[1718289070062,11.97587826,149.2,149.14,45.0]
[1718289070279,11.97587826,149.2,149.17,4.9605]
[1718289070480,6.2485,149.25,149.18,45.0]
[1718289070692,11.97587826,149.24,149.2,2.4797]
[1718289070864,11.97587826,149.24,149.19,2.48]
[1718289071193,11.97587826,149.24,149.18,45.0]
[1718289071489,11.97587826,149.24,149.17,45.0]
[1718289071885,6.2485,149.25,149.17,45.0]
[1718289072083,6.2485,149.25,149.17,62.3623]
[1718289072267,11.97587826,149.24,149.17,45.0]
[1718289072471,22.4794,149.23,149.17,45.0]
[1718289072788,11.97587826,149.22,149.17,47.4803]
[1718289072968,2.4793,149.24,149.18,2.4801]
[1718289073162,11.97587826,149.24,149.2,2.4798]
[1718289073366,11.97587826,149.24,149.18,2.4801]
[1718289073861,11.97587826,149.24,149.2,2.4798]
[1718289074105,11.97587826,149.24,149.17,45.0]
[1718289074405,6.2485,149.25,149.17,45.0]
[1718289074991,2.4797,149.22,149.16,2.4805]
[1718289075203,12.14587826,149.23,149.15,7.442]
[1718289075486,12.14587826,149.23,149.11,4.9626]
[1718289075487,2.4798,149.21,149.11,4.9626]
[1718289075696,11.97587826,149.2,149.14,2.4807]
[1718289075876,11.97587826,149.2,149.15,2.4807]
[1718289076269,0.17,149.21,149.11,2.4813]
[1718289076470,27.4389,149.22,149.14,2.4808]
[1718289076471,18.3826,149.2,149.14,2.4808]
[1718289076694,18.3826,149.2,149.1,4.963]
[1718289076695,11.97587826,149.19,149.15,2.4806]
[1718289076892,11.97587826,149.19,149.15,2.4807]
[1718289077197,11.97587826,149.19,149.06,6.1702]
[1718289077198,11.97587826,149.19,149.17,2.4802]
[1718289077409,11.97587826,149.19,149.14,4.9617]
[1718289077703,11.97587826,149.19,149.15,2.4806]
[1718289078062,11.97587826,149.19,149.16,2.4805]
[1718289078503,2.4806,149.16,149.1,2.4814]
[1718289078690,2.4806,149.16,149.06,9.9284]
[1718289078691,6.1699,149.17,149.07,4.964]
[1718289078995,2.4807,149.15,149.09,2.4816]
[1718289079379,2.4807,149.15,149.09,2.4817]
[1718289079574,0.17,149.13,149.03,17.3781]
[1718289079769,18.9695,149.12,149.05,2.4822]
[1718289079980,16.4882,149.12,149.03,4.9654]
[1718289080171,0.17,149.11,149.04,2.4825]
[1718289080375,20.17,149.11,149.05,2.4823]
[1718289080617,11.97587826,149.1,149.07,2.482]
[1718289080782,11.97587826,149.1,149.02,9.9312]
[1718289080783,11.97587826,149.1,149.06,2.4821]
[1718289081103,8.8192,149.08,149.02,2.4828]
[1718289081282,8.8192,149.08,148.97,28.7044]
[1718289081283,2.4823,149.06,148.97,4.9673]
[1718289081487,2.4823,149.06,148.96,17.3864]
[1718289081488,2.4824,149.05,148.99,2.4833]
[1718289081678,14.45807826,149.06,148.99,2.4833]
[1718289081884,2.4827,149.03,148.93,22.3586]
[1718289082183,11.97587826,149.02,148.95,7.4521]
[1718289082398,11.97587826,149.02,148.94,4.9684]
[1718289082609,11.97587826,149.02,148.97,2.4836]
[1718289082910,11.97587826,149.02,148.93,9.9371]
[1718289083090,11.97587826,149.02,148.99,2.4833]
[1718289083414,11.97587826,149.02,148.97,2.4837]
[1718289083607,11.97587826,149.02,148.94,4.9682]
[1718289084122,11.97587826,149.02,148.96,2.4838]
[1718289084288,11.97587826,149.02,148.98,2.4834]
[1718289084610,11.97587826,149.02,148.97,2.4836]
[1718289084812,14.45877826,149.02,148.95,2.4839]
[1718289084983,22.4827,149.03,148.96,2.4837]
[1718289085183,0.68,149.04,148.95,2.4839]
[1718289085509,2.483,149.01,148.95,2.4839]
[1718289085701,12.4173,148.99,148.85,53.81830777]
[1718289085892,2.4838,148.97,148.87,4.9707]
[1718289086092,2.4838,148.97,148.83,15.2671]
[1718289086093,2.4845,148.92,148.85,2.4857]
[1718289086292,4.79035131,148.96,148.83,53.82553995]
[1718289086293,4.96035131,148.96,148.88,2.4852]
[1718289086489,20.0,148.96,148.86,4.9711]
[1718289086693,4.79035131,148.95,148.89,2.4849]
[1718289086917,4.79035131,148.95,148.82,6.1317]
[1718289087110,16.2656,148.98,148.87,7.4559]
[1718289087111,16.0956,148.98,148.87,7.4559]
[1718289087418,4.79035131,149.0,148.97,2.4835]
[1718289087598,4.79035131,149.0,148.92,14.9067]
[1718289087797,4.79035131,149.0,148.92,4.9688]
[1718289088014,4.79035131,149.0,148.89,5.1397]
[1718289088188,2.4835,148.98,148.91,2.4846]
[1718289088394,2.4834,148.99,148.92,2.4845]
[1718289088716,4.96035131,149.0,148.94,2.4841]
[1718289088891,20.17,149.0,148.94,2.4841]
[1718289089213,4.79035131,148.99,148.93,2.4842]
[1718289089622,4.79035131,148.99,148.92,45.0]
[1718289089789,0.17,149.0,148.89,0.17]
[1718289089990,2.4832,149.0,148.9,4.9696]
[1718289090285,4.79035131,148.99,148.93,2.4842]
[1718289090596,4.79035131,148.99,148.89,0.17]
[1718289090800,2.4838,148.97,148.86,4.971]
[1718289091104,2.4838,148.97,148.87,9.9414]
[1718289091105,4.79035131,148.97,148.87,9.9414]
[1718289091293,4.79035131,148.97,148.91,2.4847]
[1718289091489,4.79035131,148.97,148.82,142.3193]
[1718289091698,4.79035131,148.98,148.89,9.9398]
[1718289091904,6.2938,149.01,148.98,2.4835]
[1718289092106,4.79035131,149.0,148.94,2.4841]
[1718289092511,20.0,149.0,148.94,2.4841]
[1718289092714,4.79035131,148.99,148.9,4.9696]
[1718289093016,4.79035131,149.0,148.98,2.4835]
[1718289093312,4.79035131,149.0,148.93,7.6229]
[1718289093619,4.79035131,149.0,148.91,45.51]
[1718289093620,4.79035131,149.0,148.99,2.4833]
[1718289093825,4.79035131,149.0,148.98,2.4834]
[1718289094126,4.79035131,149.0,148.99,2.4833]
[1718289094926,15.2379,149.08,149.01,7.449]
[1718289094927,4.79035131,149.04,149.01,7.449]
[1718289095234,4.79035131,149.07,149.0,14.8986]
[1718289095520,4.79035131,149.07,149.06,2.4822]
[1718289095741,4.79035131,149.07,149.04,2.4824]
[1718289095907,4.79035131,149.07,149.06,2.4822]
[1718289096540,4.79035131,149.07,149.05,47.4823]
[1718289096742,9.10166748,149.08,149.06,2.4821]
[1718289096910,9.10166748,149.08,149.05,45.0]
[1718289097115,9.10166748,149.08,149.05,47.4822]
[1718289097311,9.10166748,149.11,149.05,45.0]
[1718289097525,6.0715,149.13,149.1,2.4815]
[1718289097736,16.0874,149.16,149.1,2.4815]
[1718289097737,9.10166748,149.12,149.1,2.4815]
[1718289097938,16.0874,149.16,149.1,2.4815]
[1718289098247,9.10166748,149.15,149.09,2.4815]
[1718289098616,9.10166748,149.15,149.1,2.4815]
[1718289098810,9.10166748,149.15,149.13,2.481]
[1718289099117,9.10166748,149.15,149.09,4.9632]
[1718289099118,9.10166748,149.15,149.12,2.481]
[1718289099313,26.47,149.2,149.15,2.4805]
[1718289099314,9.10166748,149.19,149.15,2.4805]
[1718289099523,9.10166748,149.19,149.06,0.68]
[1718289099524,9.10166748,149.19,149.16,2.4804]
[1718289099738,9.10166748,149.19,149.11,14.8878]
[1718289099960,2.4802,149.18,149.12,47.4811]
[1718289100147,9.10166748,149.19,149.12,45.0]
[1718289100318,9.10166748,149.19,149.14,2.4808]
[1718289100715,9.10166748,149.19,149.15,2.4806]
[1718289100930,9.10166748,149.19,149.16,2.4805]
[1718289101438,9.10166748,149.19,149.14,12.4039]
[1718289101613,16.1033,149.21,149.17,2.4802]
[1718289101818,9.10166748,149.2,149.16,2.4805]
[1718289102318,9.10166748,149.2,149.16,2.4804]
[1718289102513,9.10166748,149.2,149.15,47.4806]
[1718289102836,9.10166748,149.2,149.09,4.9631]
[1718289103349,9.10166748,149.2,149.07,4.9639]
[1718289103350,0.17,149.19,149.07,4.9639]
[1718289103639,9.10166748,149.13,149.07,2.4819]
[1718289103815,11.58276748,149.13,149.03,17.3783]
[1718289104016,11.58276748,149.13,149.07,2.4819]
[1718289104017,2.481,149.13,149.07,2.4819]
[1718289104240,2.6507,149.16,149.06,17.3754]
[1718289104433,9.10166748,149.15,149.09,2.4816]
[1718289104826,9.10166748,149.13,149.06,2.4821]
[1718289105034,2.4813,149.12,149.05,2.4823]
[1718289105226,9.27166748,149.13,149.04,2.4825]
[1718289105421,9.10166748,149.11,149.01,7.449]
[1718289105739,11.58306748,149.11,149.04,2.4823]
[1718289106318,11.58306748,149.11,149.02,14.897]
[1718289106319,2.4814,149.11,149.05,2.4823]
[1718289106741,20.17,149.13,149.02,14.897]
[1718289106966,2.4815,149.1,149.04,2.4824]
[1718289107142,2.4815,149.1,149.03,2.4826]
[1718289107143,2.4817,149.09,149.03,2.4826]
[1718289107347,2.4818,149.08,149.02,2.4828]
[1718289107526,18.6768,149.11,149.05,2.4823]
[1718289107726,2.6516,149.1,149.04,2.4825]
[1718289108120,2.6516,149.1,149.02,4.9657]
[1718289108121,0.17,149.1,149.05,2.4822]
[1718289108340,11.97587826,149.1,149.05,2.4823]
[1718289108546,11.97587826,149.1,149.01,4.966]
[1718289108723,2.4818,149.09,149.03,2.4826]
[1718289108926,16.1954,149.11,149.0,0.17]
[1718289109158,16.1954,149.11,149.1,2.4815]
[1718289109343,16.1954,149.11,149.04,9.9302]
[1718289109524,11.97587826,149.1,149.06,2.4821]
[1718289109724,11.97587826,149.1,149.07,2.482]
[1718289110530,11.97587826,149.1,148.96,72.44754146]
[1718289110746,2.4817,149.09,149.03,2.4825]
[1718289110945,0.17,149.08,148.97,9.9348]
[1718289111138,0.17,149.08,148.9,62.97525572]
[1718289111139,0.17,149.07,148.9,69.46145572]
[1718289111337,0.17,149.05,148.96,7.4515]
[1718289111554,0.17,149.05,149.0,2.4831]
[1718289111865,0.17,149.06,149.01,2.4829]
[1718289112036,2.6522,149.06,149.0,2.4831]
[1718289112354,2.4821,149.07,148.98,12.4176]
[1718289112651,31.6036,149.09,149.03,2.4826]
[1718289112652,14.45757826,149.09,149.03,2.4826]
[1718289112852,2.4818,149.08,149.02,2.4827]
[1718289113027,11.97587826,149.09,149.02,2.4827]
[1718289113238,2.482,149.08,149.02,2.4827]
[1718289113555,2.482,149.07,149.01,47.4829]
[1718289113756,11.97587826,149.08,149.01,45.0]
[1718289113962,14.45767826,149.08,149.02,2.4827]
[1718289114339,2.482,149.07,149.01,47.4829]
[1718289114853,2.4819,149.08,149.02,2.4828]
[1718289115164,20.0,149.09,148.9,18.9047]
[1718289115463,2.4827,149.03,148.97,2.4836]
[1718289115639,12.4112,149.06,148.94,7.4526]
[1718289115640,11.97587826,149.04,148.94,4.9682]
[1718289115838,9.9285,149.07,148.95,4.968]